bitfinex-derivatives/quotes_ETHF0:USTF0_20220108
["timestamp","ask_amount","ask_price","bid_price","bid_amount"]
[1641677162502,2.5322944,3061.4,3060.4,1.5]
[1641677162708,2.5322944,3061.4,3061.0,1.5]
[1641677162903,2.5322944,3061.4,3061.3,2.00479]
[1641677163104,2.5322944,3061.4,3061.3,4.32789]
[1641677163304,2.5322944,3061.4,3061.3,6.468677]
[1641677163507,1.7035944,3061.4,3061.3,7.130647]
[1641677163706,3.80324481,3061.6,3061.3,7.130647]
[1641677163906,3.80124481,3061.6,3061.5,1.5]
[1641677164105,3.80124481,3061.6,3061.5,2.16197]
[1641677164306,3.80124481,3061.6,3061.5,3.66197]
[1641677164508,2.47850481,3061.6,3061.5,19.46449512]
[1641677164708,2.47850481,3061.6,3061.5,17.83197]
[1641677164907,2.47850481,3061.6,3061.5,19.83676]
[1641677165207,2.47850481,3061.6,3061.5,19.9184]
[1641677165407,2.47850481,3061.6,3061.5,21.55053877]
[1641677165908,4.67915917,3062.5,3061.5,21.55053877]
[1641677166106,4.67915917,3062.5,3062.4,1.5]
[1641677166309,5.34112917,3062.5,3062.4,1.5]
[1641677166515,5.34112917,3062.5,3062.0,1.5]
[1641677166710,5.34112917,3062.5,3062.2,1.5]
[1641677167007,5.34112917,3062.5,3062.3,2.00479]
[1641677167008,4.67915917,3062.5,3062.3,2.00479]
[1641677167213,4.67915917,3062.5,3062.3,2.75849]
[1641677167816,4.67915917,3062.5,3062.4,1.5]
[1641677168014,4.67915917,3062.5,3062.4,1.63229329]
[1641677168214,4.67915917,3062.5,3062.4,3.13229329]
[1641677168817,4.67915917,3062.5,3062.4,5.13708329]
[1641677169014,4.67915917,3062.5,3062.4,3.50479]
[1641677169416,4.67915917,3062.5,3062.4,3.63722185]
[1641677169417,5.34112917,3062.5,3062.4,3.63722185]
[1641677169815,4.67915917,3062.5,3062.4,5.13722185]
[1641677170216,4.67915917,3062.5,3062.4,3.50479]
[1641677170416,4.67915917,3062.5,3062.4,3.63707263]
[1641677170615,4.67915917,3062.5,3062.4,2.00479]
[1641677170820,4.67915917,3062.5,3062.4,3.63725383]
[1641677171016,5.34112917,3062.5,3062.4,3.63725383]
[1641677171425,5.34112917,3062.5,3062.4,1.63246383]
[1641677171620,4.67915917,3062.5,3062.4,3.96816383]
[1641677171820,4.67915917,3062.5,3062.4,2.46816383]
[1641677172119,4.67915917,3062.5,3062.1,1.5]
[1641677172321,0.66197,3062.4,3061.2,1.63307433]
[1641677172520,23.22957,3062.4,3060.8,1.5]
[1641677172719,3.13346913,3062.2,3060.5,1.63346913]
[1641677172923,2.00479,3061.7,3060.5,3.63825913]
[1641677173120,1.5,3061.4,3060.5,2.00479]
[1641677173520,1.5,3061.2,3060.5,2.00479]
[1641677173723,0.66197,3061.1,3060.5,2.00479]
[1641677173922,4.40879,3061.7,3060.5,2.00479]
[1641677174123,1.5,3061.5,3060.5,2.00479]
[1641677174320,0.08167,3061.4,3060.5,2.00479]
[1641677174521,1.60441037,3061.4,3060.5,2.00479]
[1641677174721,1.63440621,3060.6,3059.4,0.08167]
[1641677174920,2.00479,3060.0,3059.2,2.00479]
[1641677175121,0.66197,3059.9,3059.2,2.00479]
[1641677175320,1.58227,3059.9,3059.2,2.00479]
[1641677175522,1.58227,3059.9,3059.3,0.640787]
[1641677176222,0.9203,3059.9,3059.3,0.640787]
[1641677176424,0.08171,3060.2,3060.0,2.22629107]
[1641677176621,0.66197,3060.2,3059.2,3.63895583]
[1641677177022,0.66197,3060.2,3059.9,1.63380539]
[1641677177421,0.08168,3060.6,3060.1,1.63353584]
[1641677177623,0.08169,3062.4,3060.5,3.13333573]
[1641677177824,21.1885,3063.0,3061.2,1.5]
[1641677178024,1.5,3062.4,3061.2,0.8638]
[1641677178223,1.63447459,3062.2,3061.2,0.8638]
[1641677178423,4.0,3062.8,3061.2,0.8638]
[1641677178725,1.5,3061.8,3061.2,0.8638]
[1641677178927,2.00479,3061.4,3061.2,0.8638]
[1641677179223,2.00479,3061.4,3060.7,2.00479]
[1641677179425,0.66197,3061.3,3060.7,2.00479]
[1641677179624,2.16197,3061.3,3060.7,2.00479]
[1641677179824,2.16197,3061.3,3060.4,2.00479]
[1641677180026,0.08167,3061.2,3060.4,2.00479]
[1641677180225,0.66197,3061.1,3060.4,2.00479]
[1641677180424,1.26302777,3061.0,3060.4,2.00479]
[1641677180724,0.66197,3060.9,3060.4,2.00479]
[1641677180924,2.00479,3060.8,3060.4,2.00479]
[1641677181529,0.66197,3060.7,3060.4,2.00479]
[1641677181727,2.00479,3060.8,3060.4,2.00479]
[1641677181925,1.58168,3062.1,3060.4,2.00479]
[1641677182126,1.5,3062.1,3060.4,2.00479]
[1641677182326,0.08165,3062.8,3060.4,2.00479]
[1641677182529,22.1542,3062.0,3060.4,2.00479]
[1641677182827,20.6542,3062.0,3060.4,2.00479]
[1641677183026,2.00479,3061.5,3060.8,2.00479]
[1641677183228,0.66197,3061.4,3060.8,2.00479]
[1641677184030,1.54177,3061.4,3060.4,2.00479]
[1641677184230,1.62344,3061.4,3060.4,2.00479]
[1641677184631,0.8798,3061.4,3061.1,1.63314634]
[1641677184833,0.8798,3061.4,3061.1,2.27393334]
[1641677185033,0.66197,3061.5,3061.3,2.00479]
[1641677185231,2.00479,3061.8,3061.3,2.00479]
[1641677185432,2.66676,3061.8,3061.3,2.00479]
[1641677186132,2.66676,3061.8,3061.1,1.63314634]
[1641677186536,1.5,3061.6,3060.4,3.63832317]
[1641677186935,2.00479,3061.0,3060.4,3.63832317]
[1641677187136,3.33796,3061.0,3060.4,3.63832317]
[1641677187335,1.5,3060.7,3060.4,2.00479]
[1641677187540,1.54554938,3060.6,3060.4,2.00479]
[1641677187838,0.08168,3061.1,3060.5,3.79534308]
[1641677188036,0.08168,3062.5,3060.5,2.16197]
[1641677188236,0.08164,3063.0,3060.5,3.09207]
[1641677189038,2.00479,3062.4,3061.7,2.00479]
[1641677189237,0.743609,3062.3,3061.7,2.00479]
[1641677189438,7.468866,3062.3,3061.7,2.00479]
[1641677189638,5.968866,3062.3,3061.7,2.00479]
[1641677190038,0.743609,3062.3,3061.7,2.00479]
[1641677190438,2.16142416,3062.3,3061.7,2.00479]
[1641677190639,2.07978416,3062.3,3061.7,2.00479]
[1641677191840,1.5,3062.1,3061.7,2.00479]
[1641677192041,1.5,3061.8,3061.7,2.00479]
[1641677192241,2.4221,3061.8,3061.7,2.00479]
[1641677192440,0.661969,3061.7,3060.7,1.63334106]
[1641677192640,0.08165,3061.6,3060.2,1.63365059]
[1641677192840,1.5,3061.5,3060.2,1.63365059]
[1641677193041,2.00479,3060.8,3060.2,1.63365059]
[1641677193240,3.403859,3060.8,3060.3,0.66197]
[1641677193441,4.903859,3060.8,3060.2,1.63365059]
[1641677193647,1.5,3060.3,3059.8,1.63385344]
[1641677193844,1.5,3060.1,3059.1,1.29566274]
[1641677194046,2.3615,3060.1,3059.1,1.29566274]
[1641677194245,0.8615,3060.1,3059.5,1.63398426]
[1641677194443,0.8615,3060.1,3059.6,0.66197]
[1641677195045,2.00479,3060.0,3059.6,0.66197]
[1641677195748,13.13286045,3059.7,3058.1,0.43886924]
[1641677196046,10.90720765,3059.7,3058.1,1.93886924]
[1641677196246,5.312348,3059.6,3058.2,2.2276528]
[1641677196449,5.312348,3059.6,3058.1,0.43886924]
[1641677196450,9.312348,3059.6,3058.1,0.43886924]
[1641677196647,0.6924,3059.5,3057.9,1.63486046]
[1641677196850,14.90738941,3059.3,3057.8,1.94549035]
[1641677197148,2.00479,3058.7,3058.0,3.55958529]
[1641677197347,0.66197,3058.6,3058.0,3.55958529]
[1641677197548,1.34497,3058.6,3057.6,1.63504222]
[1641677197747,0.5,3058.1,3057.6,1.63504222]
[1641677197949,1.16197,3058.1,3057.6,1.63504222]
[1641677198351,0.5,3058.1,3057.8,2.2276528]
[1641677198549,0.5,3058.1,3058.0,2.2276528]
[1641677198748,0.5,3058.1,3058.0,4.70071971]
[1641677198950,2.00479,3059.0,3058.0,7.0755328]
[1641677199149,2.00479,3059.0,3058.4,2.2276528]
[1641677199453,2.00479,3059.5,3058.9,2.2276528]
[1641677199648,21.4205,3059.9,3058.9,0.5881]
[1641677199848,1.63417651,3060.9,3059.6,2.2276528]
[1641677200048,0.08168,3060.8,3059.6,2.8496528]
[1641677200251,2.40825651,3060.9,3059.6,2.8496528]
[1641677200449,5.228416,3060.7,3059.6,2.8496528]
[1641677200649,5.228416,3060.7,3059.6,0.622]
[1641677200849,0.08168,3060.7,3059.6,0.622]
[1641677201049,2.00479,3060.0,3059.6,0.622]
[1641677201252,0.66197,3059.9,3059.5,2.2276528]
[1641677201550,2.00479,3060.0,3059.7,1.6339095]
[1641677201749,2.00479,3060.3,3059.9,2.2276528]
[1641677201956,2.00479,3060.3,3060.0,2.2276528]
[1641677202152,2.00479,3060.3,3059.7,2.4687095]
[1641677202354,2.00479,3060.3,3059.8,2.2276528]
[1641677202555,2.66676,3060.3,3059.6,0.640787]
[1641677203054,4.67155,3060.3,3059.6,0.640787]
[1641677204256,5.43555,3060.3,3059.5,1.63398426]
[1641677204458,0.08169,3060.2,3059.5,1.63398426]
[1641677204655,0.66197,3060.1,3059.0,2.2276528]
[1641677204957,1.12560957,3060.0,3058.9,1.6343421]
[1641677205155,2.00479,3059.2,3058.9,1.6343421]
[1641677205357,2.00479,3059.2,3058.9,2.2751291]
[1641677205757,0.5,3059.0,3058.4,2.2276528]
[1641677206156,0.5,3059.0,3058.6,1.63450773]
[1641677206355,0.66197,3058.9,3058.6,1.63450773]
[1641677206556,0.5,3059.0,3058.8,2.2276528]
[1641677206756,0.66197,3058.9,3058.3,2.00479]
[1641677206959,0.66197,3058.9,3058.5,1.63453444]
[1641677207258,2.00479,3058.6,3058.0,4.2324428]
[1641677207457,2.66676,3058.6,3058.1,0.640787]
[1641677207757,2.66676,3058.6,3058.1,2.27556728]
[1641677208158,1.2054,3059.0,3058.1,2.27556728]
[1641677208159,0.5,3059.0,3058.5,2.2276528]
[1641677208358,0.5,3059.0,3058.4,1.63458521]
[1641677208559,0.5,3059.0,3058.3,0.7549]
[1641677208560,0.5,3059.0,3058.6,2.2276528]
[1641677208858,0.5,3059.0,3058.9,2.2276528]
[1641677209059,0.5,3059.0,3058.9,4.2324428]
[1641677209462,0.5,3059.0,3058.9,4.27982829]
[1641677209660,0.5,3059.0,3058.9,2.645577]
[1641677210462,0.5,3059.0,3058.9,4.27991376]
[1641677211062,0.66197,3059.2,3058.9,4.27991376]
[1641677211262,0.66197,3059.2,3058.9,3.63912676]
[1641677211664,0.66197,3059.2,3058.9,1.63433676]
[1641677212264,0.66197,3059.2,3058.1,3.86242239]
[1641677212465,1.52067,3059.2,3057.9,2.2276528]
[1641677212764,1.52067,3059.2,3058.1,1.63473752]
[1641677212965,1.41448518,3059.1,3058.1,3.86239032]
[1641677213165,1.41448518,3059.1,3058.6,2.00479]
[1641677213364,0.66197,3059.0,3058.6,2.00479]
[1641677214266,0.66197,3059.0,3058.9,2.2276528]
[1641677214467,2.00479,3059.3,3058.9,2.2276528]
[1641677214667,0.08171,3060.4,3058.6,2.00479]
[1641677214866,0.08171,3060.4,3059.2,2.2276528]
[1641677215066,0.66197,3059.7,3059.2,2.2276528]
[1641677215266,0.66197,3059.7,3059.0,2.00479]
[1641677216268,0.66197,3059.7,3059.1,0.640787]
[1641677216469,0.66197,3059.7,3059.4,2.2276528]
[1641677216770,0.08171,3060.2,3059.6,2.2276528]
[1641677216970,0.66197,3060.2,3059.4,0.6054]
[1641677217171,0.66197,3060.2,3059.8,2.00479]
[1641677220273,0.66197,3060.2,3059.6,2.2276528]
[1641677221074,2.00479,3059.9,3059.6,2.2276528]
[1641677221473,2.66676,3059.9,3059.6,2.2276528]
[1641677222474,3.30296,3059.9,3059.2,1.63416316]
[1641677222875,3.30296,3059.9,3059.0,4.2324428]
[1641677223084,5.30775,3059.9,3059.0,4.2324428]
[1641677223276,5.30775,3059.9,3059.0,2.00479]
[1641677224477,3.30296,3059.9,3059.2,2.2276528]
[1641677224679,2.66676,3059.9,3059.3,0.640787]
[1641677225180,2.66676,3059.9,3059.4,2.00479]
[1641677225378,2.66676,3059.9,3059.6,2.2276528]
[1641677227481,0.66197,3059.9,3059.6,2.2276528]
[1641677227682,2.00479,3060.4,3059.8,3.86150357]
[1641677227980,21.3003,3061.0,3060.3,3.86103388]
[1641677228181,2.05555081,3061.7,3060.9,2.2276528]
[1641677228379,0.66197,3061.6,3060.9,2.2276528]
[1641677228682,0.66197,3061.6,3060.3,1.63338108]
[1641677228878,0.08167,3061.5,3060.0,3.86136744]
[1641677229082,2.00479,3060.9,3060.2,2.00479]
[1641677229283,0.66197,3060.8,3060.2,2.00479]
[1641677229885,1.44347,3060.8,3059.7,2.2276528]
[1641677230085,1.44347,3060.8,3059.3,1.63412578]
[1641677230281,1.44347,3060.8,3058.7,0.08168]
[1641677230482,0.08169,3060.7,3058.9,2.2276528]
[1641677230683,1.63439553,3060.5,3058.8,1.63439553]
[1641677230882,0.6924,3060.3,3058.8,1.63439553]
[1641677231085,2.00479,3059.7,3059.0,2.00479]
[1641677231283,0.66197,3059.6,3059.0,2.00479]
[1641677232586,0.96600872,3059.5,3059.0,2.00479]
[1641677232783,0.66197,3059.4,3059.0,2.00479]
[1641677233183,0.66197,3059.4,3059.2,2.2276528]
[1641677233983,0.66197,3059.4,3059.0,2.00479]
[1641677237597,0.5,3059.1,3059.0,2.00479]
[1641677237789,1.16197,3059.1,3059.0,2.00479]
[1641677237987,1.16197,3059.1,3057.7,14.17]
[1641677237988,1.16197,3059.1,3057.4,25.3101]
[1641677238187,1.16197,3059.1,3057.2,1.29821027]
[1641677238387,1.16197,3059.1,3057.3,1.63516254]
[1641677238388,0.08173,3059.0,3057.3,1.63516254]
[1641677238587,0.81293,3059.0,3057.8,2.2276528]
[1641677238988,0.81293,3059.0,3057.7,1.63495134]
[1641677239187,0.7312,3059.0,3058.0,3.63959166]
[1641677239388,2.00479,3058.7,3058.0,2.00479]
[1641677239591,0.66197,3058.6,3058.0,2.00479]
[1641677239991,1.27526674,3058.5,3058.0,2.00479]
[1641677240291,0.66197,3058.4,3058.0,2.00479]
[1641677240688,0.66197,3058.4,3058.0,2.00079]
[1641677241089,0.66197,3058.4,3056.9,3.86306403]
[1641677241290,2.00479,3057.0,3056.9,1.63541123]
[1641677241489,2.96359,3057.0,3056.8,0.640787]
[1641677241689,2.96359,3057.0,3056.3,1.29821027]
[1641677241888,2.96359,3057.0,3056.3,3.52586307]
[1641677242090,2.96359,3057.0,3056.9,2.2276528]
[1641677243089,3.62556,3057.0,3056.5,1.63561988]
[1641677243291,2.96359,3057.0,3056.3,2.2276528]
[1641677243489,2.96359,3057.0,3056.5,1.63562523]
[1641677243889,2.96359,3057.0,3056.9,2.2276528]
[1641677244489,2.96359,3057.0,3056.5,1.63562523]
[1641677245791,2.96359,3057.0,3056.9,2.2276528]
[1641677245992,0.08178,3058.2,3056.9,3.86306938]
[1641677246193,0.08175,3058.8,3056.9,0.7764]
[1641677246392,0.08175,3058.8,3057.3,2.2276528]
[1641677246594,0.6924,3058.7,3057.3,2.2276528]
[1641677246794,0.08175,3058.6,3057.3,2.2276528]
[1641677246993,1.06692449,3058.6,3057.4,1.63515451]
[1641677247194,1.06692449,3058.6,3057.4,2.9282528]
[1641677247494,2.00479,3058.3,3057.6,2.00479]
[1641677247695,0.66197,3058.2,3057.6,2.00479]
[1641677247897,0.66197,3058.2,3057.6,2.645577]
[1641677249096,1.25552155,3058.1,3057.6,2.645577]
[1641677249297,0.66197,3058.0,3057.6,2.645577]
[1641677249596,1.37137,3058.0,3057.4,2.2276528]
[1641677249796,1.37137,3058.0,3056.0,24.89185]
[1641677249996,1.37137,3058.0,3056.9,2.2276528]
[1641677250197,1.37137,3058.0,3057.3,2.2276528]
[1641677250399,1.37137,3058.0,3057.4,0.640787]
[1641677251398,2.00479,3057.7,3057.4,0.640787]
[1641677252500,2.00479,3057.7,3057.3,2.2276528]
[1641677252701,0.66197,3057.6,3057.3,2.2276528]
[1641677252903,0.66197,3057.6,3057.1,2.2276528]
[1641677253299,1.49737608,3057.5,3057.0,1.63532565]
[1641677253499,0.66197,3057.4,3057.0,1.63532565]
[1641677254501,0.66197,3057.4,3056.8,2.2276528]
[1641677254702,0.66197,3057.4,3056.5,2.2276528]
[1641677254901,0.66197,3057.4,3056.5,3.86325127]
[1641677255404,2.00479,3056.9,3056.3,2.00479]
[1641677255609,0.66197,3056.8,3056.3,2.00479]
[1641677255804,0.66197,3056.8,3055.5,5.414]
[1641677256003,0.66197,3056.8,3055.8,2.2276528]
[1641677256404,1.35437,3056.8,3055.4,3.86384003]
[1641677256604,0.08179,3056.7,3055.4,3.86384003]
[1641677256804,4.08179,3056.7,3055.4,3.86384003]
[1641677257005,0.08179,3056.7,3055.4,3.86384003]
[1641677257214,1.18293276,3056.6,3055.4,3.86384003]
[1641677257406,2.00479,3056.1,3055.4,5.86863003]
[1641677257607,0.66197,3056.0,3055.4,5.86863003]
[1641677258108,0.0818,3056.8,3055.9,2.2276528]
[1641677258305,1.36546949,3056.6,3055.9,1.63587942]
[1641677258505,0.66197,3056.5,3056.2,2.2276528]
[1641677258707,0.66197,3056.5,3055.6,3.86375436]
[1641677259005,0.66197,3056.5,3055.6,1.63610156]
[1641677259405,2.00479,3056.1,3055.6,1.63610156]
[1641677259606,0.66197,3056.0,3055.6,1.63610156]
[1641677260207,1.19782334,3055.9,3055.6,1.63610156]
[1641677260410,0.66197,3055.8,3055.4,2.00479]
[1641677260614,0.66197,3055.8,3055.6,2.2276528]
[1641677260809,0.66197,3055.8,3055.4,2.00479]
[1641677261009,0.66197,3055.8,3054.2,1.63682463]
[1641677261209,0.6924,3055.7,3054.3,2.2276528]
[1641677261410,2.00479,3055.0,3054.3,4.2324428]
[1641677261609,0.66197,3054.9,3054.3,2.2276528]
[1641677261811,0.66197,3054.9,3054.0,2.2276528]
[1641677262411,0.66197,3054.9,3053.5,2.2276528]
[1641677262609,1.35437,3054.9,3053.5,2.2276528]
[1641677262810,1.35437,3054.9,3053.4,1.63725877]
[1641677262811,1.63748934,3054.7,3053.4,2.2276528]
[1641677263010,4.93048934,3054.7,3053.4,2.2276528]
[1641677263219,0.08185,3054.6,3054.0,1.5]
[1641677263413,4.00958,3054.1,3053.7,2.2276528]
[1641677263612,4.00958,3054.1,3054.0,2.8684398]
[1641677263812,4.00958,3054.1,3054.0,2.2276528]
[1641677264613,0.08185,3055.7,3054.0,3.86459532]
[1641677264614,1.71879252,3055.7,3054.0,3.86459532]
[1641677264824,48.2218,3055.8,3055.3,2.2276528]
[1641677265020,0.66197,3055.8,3055.3,0.7273]
[1641677265423,2.00479,3055.4,3055.3,0.7273]
[1641677265621,2.66676,3055.4,3055.3,0.7273]
[1641677265824,2.00479,3055.4,3055.3,2.9549528]
[1641677266020,2.00479,3055.4,3055.3,0.7273]
[1641677266321,2.00479,3055.4,3055.1,2.8684398]
[1641677267021,4.22714483,3055.5,3055.1,2.8684398]
[1641677267220,5.07854483,3055.5,3055.1,2.8684398]
[1641677267422,4.41657483,3055.5,3055.1,2.645577]
[1641677267624,0.8514,3055.5,3055.4,2.2276528]
[1641677267823,0.8514,3055.5,3055.4,3.86370083]
[1641677268224,2.00479,3056.2,3055.4,3.86370083]
[1641677268424,0.66197,3056.1,3055.8,2.2276528]
[1641677269122,2.00479,3056.2,3055.8,2.2276528]
[1641677269324,2.00479,3056.2,3055.8,4.2324428]
[1641677269522,1.19762894,3056.1,3055.7,2.27681361]
[1641677269722,0.66197,3056.0,3055.4,2.2276528]
[1641677269922,0.66197,3056.0,3055.3,1.63624077]
[1641677270122,0.66197,3056.0,3055.1,2.00479]
[1641677270123,1.19762894,3056.1,3055.7,1.63604535]
[1641677270723,1.19762894,3056.1,3055.8,2.2276528]
[1641677271223,1.19762894,3056.1,3055.7,2.27683235]
[1641677271423,1.85959894,3056.1,3055.8,2.00479]
[1641677272122,1.85959894,3056.1,3055.8,4.2324428]
[1641677273332,1.19762894,3056.1,3056.0,2.2276528]
[1641677273533,2.08658,3056.8,3056.0,3.7276528]
[1641677273731,2.00479,3056.8,3056.7,2.2276528]
[1641677273932,2.00479,3056.8,3056.7,3.6247398]
[1641677274132,2.00479,3056.8,3056.7,1.397087]
[1641677274331,2.00479,3056.8,3056.7,3.6247398]
[1641677274532,2.00479,3056.8,3056.7,5.26025267]
[1641677274731,2.00479,3056.8,3056.7,4.61946567]
[1641677276035,2.00479,3056.8,3056.3,5.86814294]
[1641677276232,0.08178,3056.7,3056.3,4.2324428]
[1641677276434,1.55437851,3056.6,3055.8,2.00479]
[1641677276632,2.21634851,3056.6,3056.0,2.2276528]
[1641677276832,2.21634851,3056.6,3055.8,4.2324428]
[1641677277033,0.08179,3056.5,3054.5,0.6924]
[1641677277233,0.08179,3056.5,3055.2,2.2276528]
[1641677277432,2.00479,3055.8,3055.2,2.2276528]
[1641677277632,2.80569,3055.8,3055.2,2.2276528]
[1641677278034,2.80569,3055.8,3055.1,2.00479]
[1641677278434,2.80569,3055.8,3055.6,2.2276528]
[1641677278736,2.80569,3055.8,3055.5,0.640787]
[1641677279135,2.80569,3055.8,3055.2,2.2276528]
[1641677279433,4.59532752,3055.8,3055.2,2.2276528]
[1641677279834,3.93335752,3055.8,3055.1,2.00479]
[1641677280236,3.93335752,3055.8,3055.5,2.2276528]
[1641677280837,3.93335752,3055.8,3055.4,0.640787]
[1641677281036,2.80569,3055.8,3055.5,2.2276528]
[1641677281238,2.00479,3055.8,3055.4,0.640787]
[1641677281435,2.78319,3055.8,3055.1,2.00479]
[1641677281640,0.7784,3055.8,3055.7,5.36362856]
[1641677281836,0.5,3056.8,3055.7,6.00672856]
[1641677282035,0.5,3056.8,3056.6,2.2276528]
[1641677283440,2.00479,3056.7,3056.4,0.640787]
[1641677283842,2.00479,3056.7,3056.1,2.2276528]
[1641677284041,1.39861674,3056.6,3055.8,2.00479]
[1641677284242,2.69848674,3056.6,3055.9,2.2276528]
[1641677284643,0.08178,3056.5,3055.9,2.2276528]
[1641677284843,0.66197,3056.4,3055.9,2.2276528]
[1641677285043,0.66197,3056.4,3055.7,1.63597576]
[1641677285343,2.00479,3055.9,3055.3,2.2276528]
[1641677285545,0.66197,3055.8,3055.3,2.8684398]
[1641677286446,0.66197,3055.8,3055.3,0.640787]
[1641677286643,0.66197,3055.8,3055.6,2.2276528]
[1641677287044,1.50990908,3055.8,3055.6,2.2276528]
[1641677287342,2.71649,3055.9,3055.6,2.2276528]
[1641677287544,2.71649,3055.9,3055.3,0.640787]
[1641677287742,2.00479,3056.7,3055.8,2.2276528]
[1641677287943,2.00479,3056.7,3056.6,2.2276528]
[1641677288143,2.00479,3056.7,3056.4,0.640787]
[1641677288344,2.00479,3056.7,3056.6,2.2276528]
[1641677288746,2.00479,3056.7,3056.3,1.63570014]
[1641677288947,0.90618399,3056.6,3056.3,3.86335294]
[1641677289544,0.90618399,3056.6,3056.3,1.63570014]
[1641677289745,2.00479,3056.7,3056.5,2.2276528]
[1641677289946,2.00479,3057.0,3056.5,2.9251528]
[1641677290145,2.00479,3057.0,3056.6,0.640787]
[1641677290749,2.00479,3057.0,3056.7,2.2276528]
[1641677290949,25.22338,3057.7,3056.7,3.86305868]
[1641677291151,0.08178,3058.1,3056.7,3.86305868]
[1641677291351,0.0001,3056.8,3056.7,3.86305868]
[1641677291552,2.00479,3058.2,3056.7,21.92263868]
[1641677291748,25.2675,3058.5,3058.1,2.2276528]
[1641677291951,0.66197,3058.5,3058.4,2.2276528]
[1641677292149,2.06079201,3058.9,3058.5,0.002]
[1641677292350,0.66197,3058.8,3058.5,0.002]
[1641677292549,0.66197,3058.8,3056.9,0.08172]
[1641677292751,1.63539519,3058.6,3057.0,2.2276528]
[1641677292951,0.08175,3058.5,3056.9,1.63539519]
[1641677293151,0.08175,3058.5,3056.8,2.2276528]
[1641677293450,2.00479,3057.4,3056.8,2.2276528]
[1641677293651,2.69539,3057.4,3056.2,1.5]
[1641677293850,2.69539,3057.4,3057.3,2.2276528]
[1641677294053,2.69539,3057.4,3057.1,2.2276528]
[1641677294252,2.69539,3057.4,3056.8,0.640787]
[1641677294453,2.69539,3057.4,3056.8,2.2276528]
[1641677294652,0.66197,3057.3,3056.7,2.00479]
[1641677294853,0.66197,3057.3,3055.9,2.2276528]
[1641677295054,25.31948,3057.2,3055.1,1.31468026]
[1641677295252,29.31948,3057.2,3055.5,2.2276528]
[1641677295453,2.00479,3056.0,3055.1,5.54712306]
[1641677295652,2.65169,3056.0,3055.1,5.54712306]
[1641677296056,2.65169,3056.0,3055.1,3.31947026]
[1641677296658,2.65169,3056.0,3055.8,2.2276528]
[1641677297057,2.00479,3056.0,3055.8,2.2276528]
[1641677297257,2.00479,3056.3,3055.8,2.2276528]
[1641677297458,2.00479,3056.7,3056.0,4.2324428]
[1641677297959,0.85898662,3056.6,3056.2,2.2276528]
[1641677299059,0.85898662,3056.6,3056.2,0.640787]
[1641677299662,0.96485279,3056.5,3056.2,0.640787]
[1641677299860,0.5,3056.3,3056.0,3.64064266]
[1641677300061,0.5,3056.3,3056.0,2.00479]
[1641677300660,1.58094535,3056.3,3056.0,2.00479]
[1641677301160,1.58094535,3056.3,3056.2,2.2276528]
[1641677301964,1.58094535,3056.3,3056.0,2.645577]
[1641677302261,0.5,3056.3,3056.2,2.2276528]
[1641677304063,1.84877729,3056.3,3056.2,2.2276528]
[1641677304266,1.84877729,3056.3,3056.0,2.645577]
[1641677304468,0.08179,3056.2,3055.6,1.63607479]
[1641677305167,0.66197,3056.1,3055.6,1.63607479]
[1641677305566,2.00479,3055.8,3055.6,1.63607479]
[1641677305964,3.19553426,3055.8,3055.6,1.63607479]
[1641677306366,3.19553426,3055.8,3055.1,2.00479]
[1641677306367,3.85750426,3055.8,3055.1,2.00479]
[1641677307567,3.85750426,3055.8,3055.6,2.2276528]
[1641677307966,3.85750426,3055.8,3055.3,2.2276528]
[1641677308166,3.85750426,3055.8,3055.7,2.2276528]
[1641677308167,2.00479,3055.8,3055.7,2.2276528]
[1641677308367,0.5,3056.3,3055.7,2.2276528]
[1641677308368,0.5,3056.3,3055.7,2.9599528]
[1641677308567,0.5,3056.3,3056.2,2.2276528]
[1641677310472,0.5,3056.3,3056.0,2.00479]
[1641677310877,0.5,3056.3,3056.0,4.2324428]
[1641677311274,0.5,3056.3,3056.2,2.2276528]
[1641677311474,0.5,3056.3,3056.0,2.00479]
[1641677311475,0.5,3056.3,3056.0,5.0894428]
[1641677311878,0.5,3056.3,3056.0,2.86179]
[1641677312075,0.5,3056.3,3056.2,2.2276528]
[1641677312276,0.5,3056.3,3056.2,0.640787]
[1641677312477,0.5,3056.3,3056.2,2.8684398]
[1641677313476,0.5,3056.3,3056.2,0.640787]
[1641677313676,1.44471573,3056.6,3056.2,0.640787]
[1641677314077,1.44471573,3056.6,3056.0,2.00479]
[1641677314278,2.35149573,3056.6,3054.7,1.5]
[1641677314480,2.35149573,3056.6,3055.5,2.2276528]
[1641677315680,2.00479,3055.9,3055.5,2.2276528]
[1641677315880,1.16255729,3055.8,3055.5,2.2276528]
[1641677316682,1.92495729,3055.8,3055.4,1.63617652]
[1641677316880,1.92495729,3055.8,3055.1,2.00479]
[1641677317083,1.92495729,3055.8,3055.6,2.2276528]
[1641677317281,2.58692729,3055.8,3055.1,4.2324428]
[1641677317484,2.58692729,3055.8,3055.7,2.2276528]
[1641677317682,1.92495729,3055.8,3055.7,2.2276528]
[1641677318584,1.92495729,3055.8,3055.6,2.2276528]
[1641677320086,1.92495729,3055.8,3055.5,0.640787]
[1641677320284,2.58692729,3055.8,3055.2,2.2276528]
[1641677321086,2.58692729,3055.8,3055.1,2.00479]
[1641677321295,2.58692729,3055.8,3054.5,2.2276528]
[1641677321489,2.58692729,3055.8,3054.4,1.3364887]
[1641677321490,0.08182,3055.7,3054.4,1.3364887]
[1641677321686,2.00479,3055.2,3054.5,2.00479]
[1641677321888,2.00479,3055.2,3054.4,1.3364887]
[1641677321889,0.74379,3055.1,3054.4,1.3364887]
[1641677322291,1.70149,3055.1,3054.5,2.2276528]
[1641677322588,1.18097943,3055.0,3054.4,3.5641415]
[1641677322788,0.66197,3054.9,3054.4,1.3364887]
[1641677323591,4.00958,3054.5,3054.4,1.3364887]
[1641677323991,4.67155,3054.5,3054.4,1.3364887]
[1641677324390,6.20638136,3054.5,3054.4,1.3364887]
[1641677324593,6.20638136,3054.5,3054.4,3.5641415]
[1641677324991,6.20638136,3054.5,3054.4,1.3364887]